[Event "Titled Tuesday Blitz March 29 Early 2022"]
[White "Wong, Yinn Long"]
[Black "Chernomordik, Pavel"]
[WhiteFideId "5707684"]
[BlackFideId "2804530"]
[WhiteElo "2055"]
[BlackElo "2249"]
[Result "1/2-1/2"]
[Round "02"]
[TimeControl "180+1"]
[Date "2022.03.30"]
[WhiteClock "0:00:24"]
[BlackClock "0:00:17"]

1. Nf3 {[%clk 0:03:00]}  g6 {[%clk 0:02:59]} 2. g3 {[%clk 0:03:00]}  Bg7 {[%clk 0:02:59]} 3. Bg2 {[%clk 0:03:01]}  e5 {[%clk 0:02:59]} 4. d3 {[%clk 0:03:01]}  Nc6 {[%clk 0:02:59]} 5. c4 {[%clk 0:03:00]}  d6 {[%clk 0:02:59]} 6. O-O {[%clk 0:03:00]}  h6 {[%clk 0:02:58]} 7. Nc3 {[%clk 0:03:01]}  Be6 {[%clk 0:02:58]} 8. Rb1 {[%clk 0:03:00]}  Qd7 {[%clk 0:02:58]} 9. b4 {[%clk 0:02:58]}  Nge7 {[%clk 0:02:58]} 10. b5 {[%clk 0:02:52]}  Nd8 {[%clk 0:02:58]} 11. Bb2 {[%clk 0:02:48]}  O-O {[%clk 0:02:52]} 12. e3 {[%clk 0:02:49]}  Bh3 {[%clk 0:02:47]} 13. Nd2 {[%clk 0:02:46]}  Bxg2 {[%clk 0:02:47]} 14. Kxg2 {[%clk 0:02:47]}  Ne6 {[%clk 0:02:44]} 15. Qe2 {[%clk 0:02:36]}  f5 {[%clk 0:02:42]} 16. f4 {[%clk 0:02:22]}  Rae8 {[%clk 0:02:38]} 17. Qf3 {[%clk 0:02:15]}  Nc5 {[%clk 0:02:31]} 18. e4 {[%clk 0:01:54]}  exf4 {[%clk 0:02:22]} 19. gxf4 {[%clk 0:01:53]}  Ne6 {[%clk 0:02:09]} 20. Qg3 {[%clk 0:01:44]}  fxe4 {[%clk 0:01:57]} 21. dxe4 {[%clk 0:01:40]}  Kh7 {[%clk 0:01:50]} 22. Rbe1 {[%clk 0:01:28]}  Rf7 {[%clk 0:01:36]} 23. Kh1 {[%clk 0:00:54]}  Ref8 {[%clk 0:01:35]} 24. f5 {[%clk 0:00:49]}  gxf5 {[%clk 0:01:27]} 25. exf5 {[%clk 0:00:49]}  Nxf5 {[%clk 0:01:26]} 26. Qd3 {[%clk 0:00:50]}  Nc5 {[%clk 0:01:20]} 27. Qh3 {[%clk 0:00:48]}  Nd4 {[%clk 0:01:07]} 28. Qxd7 {[%clk 0:00:42]}  Rxf1+ {[%clk 0:01:00]} 29. Rxf1 {[%clk 0:00:37]}  Rxf1+ {[%clk 0:00:58]} 30. Nxf1 {[%clk 0:00:38]}  Nxd7 {[%clk 0:00:59]} 31. Nd5 {[%clk 0:00:39]}  c6 {[%clk 0:00:54]} 32. bxc6 {[%clk 0:00:37]}  bxc6 {[%clk 0:00:54]} 33. Ne7 {[%clk 0:00:36]}  Nb6 {[%clk 0:00:51]} 34. Ne3 {[%clk 0:00:36]}  Na4 {[%clk 0:00:41]} 35. Bxd4 {[%clk 0:00:31]}  Bxd4 {[%clk 0:00:40]} 36. N3f5 {[%clk 0:00:32]}  Bc5 {[%clk 0:00:36]} 37. Nxc6 {[%clk 0:00:32]}  Nb2 {[%clk 0:00:36]} 38. Na5 {[%clk 0:00:26]}  Bb6 {[%clk 0:00:30]} 39. Nb7 {[%clk 0:00:24]}  Nxc4 {[%clk 0:00:28]} 40. Nfxd6 {[%clk 0:00:24]}  Nxd6 {[%clk 0:00:27]} 41. Nxd6 {[%clk 0:00:25]}  Kg6 {[%clk 0:00:28]} 42. Kg2 {[%clk 0:00:25]}  Kf6 {[%clk 0:00:28]} 43. Kf3 {[%clk 0:00:26]}  Ke6 {[%clk 0:00:27]} 44. Nc4 {[%clk 0:00:17]}  Bc7 {[%clk 0:00:27]} 45. h3 {[%clk 0:00:16]}  Kd5 {[%clk 0:00:26]} 46. Nd2 {[%clk 0:00:17]}  Kd4 {[%clk 0:00:26]} 47. Kg4 {[%clk 0:00:17]}  Kc3 {[%clk 0:00:23]} 48. Ne4+ {[%clk 0:00:16]}  Kb2 {[%clk 0:00:23]} 49. a4 {[%clk 0:00:17]}  a5 {[%clk 0:00:21]} 50. Nc5 {[%clk 0:00:14]}  Kc3 {[%clk 0:00:18]} 51. Kh5 {[%clk 0:00:15]}  Bf4 {[%clk 0:00:17]} 52. Nb7 {[%clk 0:00:13]}  Kb4 {[%clk 0:00:17]} 53. Nxa5 {[%clk 0:00:14]}  Kxa5 {[%clk 0:00:16]} 54. Kg4 {[%clk 0:00:15]}  Bc1 {[%clk 0:00:16]} 55. Kf3 {[%clk 0:00:16]}  Kxa4 {[%clk 0:00:15]} 56. Kg2 {[%clk 0:00:17]}  Kb4 {[%clk 0:00:15]} 57. h4 {[%clk 0:00:17]}  Kc4 {[%clk 0:00:16]} 58. h5 {[%clk 0:00:18]}  Kd4 {[%clk 0:00:16]} 59. Kh1 {[%clk 0:00:19]}  Ke4 {[%clk 0:00:16]} 60. Kg2 {[%clk 0:00:20]}  Kf4 {[%clk 0:00:16]} 61. Kh1 {[%clk 0:00:21]}  Kg4 {[%clk 0:00:16]} 62. Kg2 {[%clk 0:00:22]}  Be3 {[%clk 0:00:16]} 63. Kh1 {[%clk 0:00:22]}  Kxh5 {[%clk 0:00:16]} 64. Kg2 {[%clk 0:00:23]}  Kg4 {[%clk 0:00:17]} 65. Kh1 {[%clk 0:00:24]}  Kh3 {[%clk 0:00:17]} 1/2-1/2


[Site "https://www.chess.com"]

[Event "Titled Tuesday Blitz March 29 Early 2022"]
[White "Yaniuk, Volodymyr"]
[Black "Sergienko, Sergey"]
[WhiteFideId "14133083"]
[BlackFideId "4115791"]
[WhiteElo "2207"]
[BlackElo "2193"]
[Result "1-0"]
[Round "02"]
[TimeControl "180+1"]
[Date "2022.03.30"]
[WhiteClock "0:01:22"]
[BlackClock "0:00:29"]

1. d4 {[%clk 0:03:00]}  Nf6 {[%clk 0:02:59]} 2. c4 {[%clk 0:03:00]}  c5 {[%clk 0:02:58]} 3. Nf3 {[%clk 0:02:57]}  cxd4 {[%clk 0:02:57]} 4. Nxd4 {[%clk 0:02:58]}  b6 {[%clk 0:02:57]} 5. Nc3 {[%clk 0:02:57]}  Bb7 {[%clk 0:02:57]} 6. f3 {[%clk 0:02:58]}  d6 {[%clk 0:02:57]} 7. e4 {[%clk 0:02:57]}  e6 {[%clk 0:02:57]} 8. Be3 {[%clk 0:02:58]}  Be7 {[%clk 0:02:57]} 9. Qd2 {[%clk 0:02:58]}  Nbd7 {[%clk 0:02:45]} 10. O-O-O {[%clk 0:02:57]}  a6 {[%clk 0:02:19]} 11. g4 {[%clk 0:02:52]}  b5 {[%clk 0:02:10]} 12. cxb5 {[%clk 0:02:46]}  axb5 {[%clk 0:02:10]} 13. Ndxb5 {[%clk 0:02:47]}  d5 {[%clk 0:02:04]} 14. e5 {[%clk 0:02:43]}  Nxe5 {[%clk 0:01:51]} 15. Bf4 {[%clk 0:02:43]}  Nfd7 {[%clk 0:01:41]} 16. Qe2 {[%clk 0:02:15]}  f6 {[%clk 0:01:35]} 17. Kb1 {[%clk 0:02:13]}  O-O {[%clk 0:01:24]} 18. Nd4 {[%clk 0:02:13]}  Qb6 {[%clk 0:01:17]} 19. Qb5 {[%clk 0:02:10]}  Qd6 {[%clk 0:01:00]} 20. Qb3 {[%clk 0:02:00]}  Ba6 {[%clk 0:00:53]} 21. Ndb5 {[%clk 0:01:52]}  Bxb5 {[%clk 0:00:47]} 22. Nxb5 {[%clk 0:01:52]}  Qb8 {[%clk 0:00:43]} 23. Be2 {[%clk 0:01:41]}  Nc5 {[%clk 0:00:39]} 24. Qe3 {[%clk 0:01:34]}  Rc8 {[%clk 0:00:32]} 25. g5 {[%clk 0:01:30]}  Qb6 {[%clk 0:00:29]} 26. gxf6 {[%clk 0:01:27]}  gxf6 {[%clk 0:00:29]} 27. Rhg1+ {[%clk 0:01:24]}  Kh8 {[%clk 0:00:29]} 28. Bxe5 {[%clk 0:01:22]} 1-0


[Site "https://www.chess.com"]

[Event "Titled Tuesday Blitz March 29 Early 2022"]
[White "Zaksaite, Salomeja"]
[Black "Taboas Rodriguez, Daniel"]
[WhiteFideId "12801496"]
[BlackFideId "2208466"]
[WhiteElo "1953"]
[BlackElo "2429"]
[Result "0-1"]
[Round "02"]
[TimeControl "180+1"]
[Date "2022.03.30"]
[WhiteClock "0:00:03"]
[BlackClock "0:01:24"]

1. e4 {[%clk 0:02:57]}  e6 {[%clk 0:02:59]} 2. d4 {[%clk 0:02:56]}  d5 {[%clk 0:03:00]} 3. Nc3 {[%clk 0:02:56]}  Nc6 {[%clk 0:03:00]} 4. e5 {[%clk 0:02:54]}  f6 {[%clk 0:02:59]} 5. f4 {[%clk 0:02:46]}  fxe5 {[%clk 0:02:58]} 6. dxe5 {[%clk 0:02:35]}  Bc5 {[%clk 0:02:57]} 7. Nf3 {[%clk 0:02:35]}  Nh6 {[%clk 0:02:55]} 8. Bd3 {[%clk 0:02:35]}  O-O {[%clk 0:02:55]} 9. Na4 {[%clk 0:02:25]}  Be7 {[%clk 0:02:49]} 10. Be3 {[%clk 0:02:23]}  Bd7 {[%clk 0:02:22]} 11. c4 {[%clk 0:02:11]}  Nb4 {[%clk 0:02:16]} 12. Bc2 {[%clk 0:00:49]}  Ng4 {[%clk 0:02:07]} 13. Bg1 {[%clk 0:00:47]}  Rxf4 {[%clk 0:02:03]} 14. h3 {[%clk 0:00:47]}  Nxc2+ {[%clk 0:01:58]} 15. Qxc2 {[%clk 0:00:46]}  Rxc4 {[%clk 0:01:59]} 16. Qd3 {[%clk 0:00:28]}  Nxe5 {[%clk 0:01:51]} 17. Nxe5 {[%clk 0:00:24]}  Re4+ {[%clk 0:01:50]} 18. Be3 {[%clk 0:00:20]}  Bh4+ {[%clk 0:01:42]} 19. Kd2 {[%clk 0:00:19]}  Rxe5 {[%clk 0:01:41]} 20. Nc5 {[%clk 0:00:16]}  Bg5 {[%clk 0:01:35]} 21. Bxg5 {[%clk 0:00:13]}  Qxg5+ {[%clk 0:01:36]} 22. Kc3 {[%clk 0:00:11]}  Re3 {[%clk 0:01:35]} 23. Nxd7 {[%clk 0:00:09]}  d4+ {[%clk 0:01:24]} 24. Kc2 {[%clk 0:00:03]} 0-1


[Site "https://www.chess.com"]

[Event "Titled Tuesday Blitz March 29 Early 2022"]
[White "parintele_chess"]
[Black "Mikhalsky, Vladimir"]
[BlackFideId "14144352"]
[WhiteElo "2234"]
[BlackElo "2301"]
[Result "0-1"]
[Round "02"]
[TimeControl "180+1"]
[Date "2022.03.30"]
[WhiteClock "0:00:03"]
[BlackClock "0:00:36"]

1. d4 {[%clk 0:01:36]}  g6 {[%clk 0:02:39]} 2. e4 {[%clk 0:01:35]}  Bg7 {[%clk 0:02:39]} 3. Nc3 {[%clk 0:01:36]}  d6 {[%clk 0:02:39]} 4. Bf4 {[%clk 0:01:36]}  Nd7 {[%clk 0:02:39]} 5. Nf3 {[%clk 0:01:35]}  a6 {[%clk 0:02:37]} 6. a4 {[%clk 0:01:33]}  b6 {[%clk 0:02:36]} 7. Bc4 {[%clk 0:01:32]}  e5 {[%clk 0:02:35]} 8. Bg5 {[%clk 0:01:30]}  Ngf6 {[%clk 0:02:32]} 9. Bd5 {[%clk 0:01:16]}  Rb8 {[%clk 0:02:23]} 10. Bc6 {[%clk 0:01:11]}  O-O {[%clk 0:02:22]} 11. Bxd7 {[%clk 0:01:09]}  Qxd7 {[%clk 0:02:12]} 12. dxe5 {[%clk 0:01:08]}  dxe5 {[%clk 0:02:12]} 13. Bxf6 {[%clk 0:01:05]}  Bxf6 {[%clk 0:02:08]} 14. Qxd7 {[%clk 0:01:05]}  Bxd7 {[%clk 0:02:07]} 15. O-O-O {[%clk 0:01:06]}  Bc6 {[%clk 0:01:58]} 16. Nd5 {[%clk 0:01:04]}  Kg7 {[%clk 0:01:52]} 17. Nxf6 {[%clk 0:01:01]}  Kxf6 {[%clk 0:01:52]} 18. b3 {[%clk 0:01:00]}  Bxe4 {[%clk 0:01:50]} 19. Rd7 {[%clk 0:01:00]}  Rfd8 {[%clk 0:01:33]} 20. Rxc7 {[%clk 0:00:52]}  Rbc8 {[%clk 0:01:33]} 21. Rxc8 {[%clk 0:00:51]}  Rxc8 {[%clk 0:01:33]} 22. Ne1 {[%clk 0:00:51]}  b5 {[%clk 0:01:24]} 23. axb5 {[%clk 0:00:52]}  axb5 {[%clk 0:01:24]} 24. f3 {[%clk 0:00:52]}  Bf5 {[%clk 0:01:23]} 25. g4 {[%clk 0:00:52]}  Be6 {[%clk 0:01:22]} 26. Kb2 {[%clk 0:00:49]}  e4 {[%clk 0:01:15]} 27. fxe4 {[%clk 0:00:39]}  Bxg4 {[%clk 0:01:14]} 28. Rf1+ {[%clk 0:00:40]}  Kg7 {[%clk 0:01:11]} 29. Nd3 {[%clk 0:00:37]}  Re8 {[%clk 0:01:01]} 30. e5 {[%clk 0:00:34]}  Be2 {[%clk 0:00:53]} 31. Re1 {[%clk 0:00:35]}  Bf3 {[%clk 0:00:52]} 32. c4 {[%clk 0:00:29]}  bxc4 {[%clk 0:00:51]} 33. bxc4 {[%clk 0:00:30]}  g5 {[%clk 0:00:50]} 34. Kc3 {[%clk 0:00:22]}  h5 {[%clk 0:00:48]} 35. c5 {[%clk 0:00:21]}  h4 {[%clk 0:00:45]} 36. Kc4 {[%clk 0:00:14]}  g4 {[%clk 0:00:43]} 37. Nb4 {[%clk 0:00:08]}  g3 {[%clk 0:00:42]} 38. hxg3 {[%clk 0:00:09]}  h3 {[%clk 0:00:42]} 39. c6 {[%clk 0:00:09]}  h2 {[%clk 0:00:42]} 40. c7 {[%clk 0:00:08]}  Rc8 {[%clk 0:00:40]} 41. Na6 {[%clk 0:00:06]}  h1=Q {[%clk 0:00:38]} 42. Rxh1 {[%clk 0:00:06]}  Bxh1 {[%clk 0:00:38]} 43. Kc5 {[%clk 0:00:07]}  Bb7 {[%clk 0:00:38]} 44. Nb4 {[%clk 0:00:03]}  Rxc7+ {[%clk 0:00:37]} 45. Kb6 {[%clk 0:00:04]}  Re7 {[%clk 0:00:37]} 46. Nd3 {[%clk 0:00:03]}  Be4 {[%clk 0:00:36]} 0-1


[Site "https://www.chess.com"]

[Event "Titled Tuesday Blitz March 29 Early 2022"]
[White "Al-Tarboush, Ward"]
[Black "Polster, Christian"]
[WhiteFideId "7601450"]
[BlackFideId "12965081"]
[WhiteElo "2276"]
[BlackElo "2328"]
[Result "1-0"]
[Round "03"]
[TimeControl "180+1"]
[Date "2022.03.30"]
[WhiteClock "0:00:11"]
[BlackClock "0:00:01"]

1. d4 {[%clk 0:03:00]}  d5 {[%clk 0:02:56]} 2. Nc3 {[%clk 0:03:00]}  Nf6 {[%clk 0:02:55]} 3. Bg5 {[%clk 0:03:00]}  Nbd7 {[%clk 0:02:55]} 4. e3 {[%clk 0:02:50]}  c6 {[%clk 0:02:55]} 5. Bd3 {[%clk 0:02:50]}  Qa5 {[%clk 0:02:47]} 6. Ne2 {[%clk 0:02:44]}  Ne4 {[%clk 0:02:43]} 7. Bxe4 {[%clk 0:02:41]}  dxe4 {[%clk 0:02:43]} 8. Bf4 {[%clk 0:02:41]}  h5 {[%clk 0:02:12]} 9. O-O {[%clk 0:02:40]}  g5 {[%clk 0:02:08]} 10. b4 {[%clk 0:02:36]}  Qf5 {[%clk 0:01:28]} 11. Bc7 {[%clk 0:02:28]}  Nf6 {[%clk 0:01:21]} 12. Be5 {[%clk 0:02:27]}  Be6 {[%clk 0:01:14]} 13. Ng3 {[%clk 0:02:15]}  Qg6 {[%clk 0:01:08]} 14. Bxf6 {[%clk 0:02:12]}  exf6 {[%clk 0:01:05]} 15. Ngxe4 {[%clk 0:02:12]}  f5 {[%clk 0:01:04]} 16. Nc5 {[%clk 0:02:11]}  Bc4 {[%clk 0:01:04]} 17. Re1 {[%clk 0:02:11]}  b6 {[%clk 0:00:58]} 18. Nd3 {[%clk 0:02:10]}  Bxd3 {[%clk 0:00:43]} 19. Qxd3 {[%clk 0:02:11]}  Bxb4 {[%clk 0:00:43]} 20. e4 {[%clk 0:02:12]}  fxe4 {[%clk 0:00:35]} 21. Rxe4+ {[%clk 0:02:11]}  Kf8 {[%clk 0:00:36]} 22. Rae1 {[%clk 0:02:09]}  Kg7 {[%clk 0:00:29]} 23. a3 {[%clk 0:02:04]}  Bxa3 {[%clk 0:00:24]} 24. d5 {[%clk 0:01:54]}  Bc5 {[%clk 0:00:12]} 25. Na4 {[%clk 0:01:42]}  cxd5 {[%clk 0:00:12]} 26. Qxd5 {[%clk 0:01:42]}  Rad8 {[%clk 0:00:12]} 27. Qe5+ {[%clk 0:01:31]}  Qf6 {[%clk 0:00:12]} 28. Nxc5 {[%clk 0:01:31]}  bxc5 {[%clk 0:00:12]} 29. Qxc5 {[%clk 0:01:29]}  Rd2 {[%clk 0:00:12]} 30. Re5 {[%clk 0:01:26]}  Kh6 {[%clk 0:00:12]} 31. h4 {[%clk 0:01:15]}  Rg8 {[%clk 0:00:10]} 32. Rf5 {[%clk 0:01:02]}  Qb6 {[%clk 0:00:08]} 33. hxg5+ {[%clk 0:00:55]}  Kh7 {[%clk 0:00:06]} 34. Rxf7+ {[%clk 0:00:54]}  Rg7 {[%clk 0:00:07]} 35. Rxg7+ {[%clk 0:00:51]}  Kxg7 {[%clk 0:00:08]} 36. Re7+ {[%clk 0:00:51]}  Kg6 {[%clk 0:00:07]} 37. Re5 {[%clk 0:00:31]}  Qxc5 {[%clk 0:00:07]} 38. Rxc5 {[%clk 0:00:32]}  Rd1+ {[%clk 0:00:08]} 39. Kh2 {[%clk 0:00:32]}  h4 {[%clk 0:00:07]} 40. Kh3 {[%clk 0:00:28]}  Rf1 {[%clk 0:00:07]} 41. f3 {[%clk 0:00:22]}  Rh1+ {[%clk 0:00:07]} 42. Kg4 {[%clk 0:00:22]}  Rg1 {[%clk 0:00:08]} 43. Rc6+ {[%clk 0:00:21]}  Kg7 {[%clk 0:00:08]} 44. Kxh4 {[%clk 0:00:20]}  Rxg2 {[%clk 0:00:08]} 45. f4 {[%clk 0:00:21]}  a5 {[%clk 0:00:08]} 46. f5 {[%clk 0:00:20]}  a4 {[%clk 0:00:08]} 47. Rc7+ {[%clk 0:00:20]}  Kf8 {[%clk 0:00:07]} 48. f6 {[%clk 0:00:15]}  Rf2 {[%clk 0:00:06]} 49. Kh5 {[%clk 0:00:14]}  a3 {[%clk 0:00:06]} 50. Kg6 {[%clk 0:00:14]}  Ke8 {[%clk 0:00:06]} 51. Ra7 {[%clk 0:00:13]}  a2 {[%clk 0:00:02]} 52. Rxa2 {[%clk 0:00:13]}  Kd7 {[%clk 0:00:03]} 53. f7 {[%clk 0:00:12]}  Ke6 {[%clk 0:00:02]} 54. Ra6+ {[%clk 0:00:12]}  Ke7 {[%clk 0:00:02]} 55. Rf6 {[%clk 0:00:13]}  Rf5 {[%clk 0:00:01]} 56. f8=Q+ {[%clk 0:00:12]}  Kd7 {[%clk 0:00:01]} 57. Rd6+ {[%clk 0:00:11]} 1-0


[Site "https://www.chess.com"]

[Event "Titled Tuesday Blitz March 29 Early 2022"]
[White "Aravindh, Chithambaram VR."]
[Black "Dushyant Sharma"]
[WhiteFideId "5072786"]
[BlackFideId "25065130"]
[WhiteElo "2561"]
[BlackElo "2105"]
[Result "1-0"]
[Round "03"]
[TimeControl "180+1"]
[Date "2022.03.30"]
[WhiteClock "0:01:30"]
[BlackClock "0:00:18"]

1. b3 {[%clk 0:03:00]}  d5 {[%clk 0:02:53]} 2. Bb2 {[%clk 0:03:00]}  e6 {[%clk 0:02:46]} 3. Nf3 {[%clk 0:03:00]}  Nf6 {[%clk 0:02:45]} 4. g3 {[%clk 0:02:59]}  Be7 {[%clk 0:02:27]} 5. Bg2 {[%clk 0:02:59]}  O-O {[%clk 0:02:15]} 6. O-O {[%clk 0:03:00]}  c5 {[%clk 0:02:15]} 7. c4 {[%clk 0:03:00]}  Nc6 {[%clk 0:02:16]} 8. cxd5 {[%clk 0:03:00]}  exd5 {[%clk 0:02:15]} 9. d4 {[%clk 0:03:00]}  c4 {[%clk 0:02:08]} 10. Ne5 {[%clk 0:02:52]}  Be6 {[%clk 0:01:53]} 11. bxc4 {[%clk 0:02:52]}  dxc4 {[%clk 0:01:52]} 12. Bxc6 {[%clk 0:02:52]}  bxc6 {[%clk 0:01:51]} 13. Nxc6 {[%clk 0:02:53]}  Qc7 {[%clk 0:01:49]} 14. Nxe7+ {[%clk 0:02:53]}  Qxe7 {[%clk 0:01:50]} 15. Ba3 {[%clk 0:02:53]}  Qb7 {[%clk 0:01:50]} 16. Bxf8 {[%clk 0:02:53]}  Rxf8 {[%clk 0:01:47]} 17. f3 {[%clk 0:02:31]}  Nd5 {[%clk 0:01:42]} 18. Qd2 {[%clk 0:02:26]}  Qb6 {[%clk 0:00:44]} 19. Nc3 {[%clk 0:02:16]}  Qa5 {[%clk 0:00:45]} 20. Rac1 {[%clk 0:02:15]}  Rd8 {[%clk 0:00:41]} 21. Rfd1 {[%clk 0:02:05]}  Nb4 {[%clk 0:00:37]} 22. Ne4 {[%clk 0:02:01]}  f5 {[%clk 0:00:21]} 23. Nc5 {[%clk 0:01:54]}  Bd5 {[%clk 0:00:19]} 24. e4 {[%clk 0:01:33]}  Ba8 {[%clk 0:00:18]} 25. Rxc4 {[%clk 0:01:30]} 1-0


[Site "https://www.chess.com"]

[Event "Titled Tuesday Blitz March 29 Early 2022"]
[White "Bacrot, Etienne"]
[Black "Taboas Rodriguez, Daniel"]
[WhiteFideId "605506"]
[BlackFideId "2208466"]
[WhiteElo "2673"]
[BlackElo "2429"]
[Result "0-1"]
[Round "03"]
[TimeControl "180+1"]
[Date "2022.03.29"]
[WhiteClock "0:00:05"]
[BlackClock "0:00:14"]

1. e4 {[%clk 0:03:00]}  e6 {[%clk 0:03:00]} 2. Nf3 {[%clk 0:03:00]}  d5 {[%clk 0:03:00]} 3. exd5 {[%clk 0:02:59]}  exd5 {[%clk 0:03:01]} 4. d4 {[%clk 0:03:00]}  Nf6 {[%clk 0:03:01]} 5. Bd3 {[%clk 0:03:00]}  Be7 {[%clk 0:03:01]} 6. O-O {[%clk 0:02:59]}  O-O {[%clk 0:03:02]} 7. Re1 {[%clk 0:02:58]}  Bg4 {[%clk 0:03:02]} 8. Nbd2 {[%clk 0:02:57]}  Nbd7 {[%clk 0:03:00]} 9. Nf1 {[%clk 0:02:53]}  Re8 {[%clk 0:03:00]} 10. Ng3 {[%clk 0:02:45]}  Bd6 {[%clk 0:02:55]} 11. Rxe8+ {[%clk 0:02:34]}  Qxe8 {[%clk 0:02:56]} 12. h3 {[%clk 0:01:54]}  Bxf3 {[%clk 0:02:49]} 13. Qxf3 {[%clk 0:01:53]}  Qe1+ {[%clk 0:02:49]} 14. Nf1 {[%clk 0:01:51]}  Ne4 {[%clk 0:02:40]} 15. Qe3 {[%clk 0:01:42]}  Qxe3 {[%clk 0:02:36]} 16. Bxe3 {[%clk 0:01:39]}  Re8 {[%clk 0:02:34]} 17. a4 {[%clk 0:01:36]}  g6 {[%clk 0:02:30]} 18. a5 {[%clk 0:01:35]}  f5 {[%clk 0:02:30]} 19. f3 {[%clk 0:01:29]}  Ng3 {[%clk 0:02:28]} 20. Kf2 {[%clk 0:00:58]}  Nxf1 {[%clk 0:02:21]} 21. Bxf1 {[%clk 0:00:49]}  a6 {[%clk 0:02:16]} 22. Bd2 {[%clk 0:00:47]}  Nb8 {[%clk 0:02:06]} 23. c4 {[%clk 0:00:41]}  dxc4 {[%clk 0:02:06]} 24. Bxc4+ {[%clk 0:00:40]}  Kf8 {[%clk 0:02:06]} 25. b4 {[%clk 0:00:21]}  Nc6 {[%clk 0:02:04]} 26. b5 {[%clk 0:00:21]}  Nxd4 {[%clk 0:01:56]} 27. bxa6 {[%clk 0:00:16]}  bxa6 {[%clk 0:01:57]} 28. Bh6+ {[%clk 0:00:16]}  Ke7 {[%clk 0:01:57]} 29. Re1+ {[%clk 0:00:16]}  Kd7 {[%clk 0:01:56]} 30. Rxe8 {[%clk 0:00:17]}  Kxe8 {[%clk 0:01:57]} 31. Bxa6 {[%clk 0:00:16]}  Bb4 {[%clk 0:01:52]} 32. Bg7 {[%clk 0:00:14]}  Ne6 {[%clk 0:01:47]} 33. Bb5+ {[%clk 0:00:13]}  Kf7 {[%clk 0:01:47]} 34. Be5 {[%clk 0:00:09]}  Bxa5 {[%clk 0:01:46]} 35. Bc4 {[%clk 0:00:09]}  Ke7 {[%clk 0:01:45]} 36. f4 {[%clk 0:00:09]}  Bb6+ {[%clk 0:01:43]} 37. Kf3 {[%clk 0:00:09]}  c6 {[%clk 0:01:43]} 38. g4 {[%clk 0:00:09]}  Kf7 {[%clk 0:01:18]} 39. h4 {[%clk 0:00:08]}  fxg4+ {[%clk 0:01:15]} 40. Kxg4 {[%clk 0:00:09]}  h5+ {[%clk 0:01:15]} 41. Kf3 {[%clk 0:00:09]}  Ba5 {[%clk 0:01:14]} 42. Ke4 {[%clk 0:00:09]}  Ke7 {[%clk 0:01:11]} 43. Kf3 {[%clk 0:00:09]}  Be1 {[%clk 0:01:10]} 44. Bd3 {[%clk 0:00:09]}  Kf7 {[%clk 0:01:09]} 45. Be4 {[%clk 0:00:09]}  c5 {[%clk 0:01:08]} 46. Bd5 {[%clk 0:00:07]}  Bxh4 {[%clk 0:01:08]} 47. Bd6 {[%clk 0:00:07]}  Be7 {[%clk 0:01:07]} 48. Be5 {[%clk 0:00:06]}  Bf6 {[%clk 0:00:58]} 49. Bd6 {[%clk 0:00:06]}  Bd4 {[%clk 0:00:58]} 50. Ke4 {[%clk 0:00:03]}  Kf6 {[%clk 0:00:58]} 51. Bb8 {[%clk 0:00:03]}  Bc3 {[%clk 0:00:51]} 52. Bc4 {[%clk 0:00:03]}  Bd2 {[%clk 0:00:51]} 53. Kf3 {[%clk 0:00:02]}  Nd4+ {[%clk 0:00:48]} 54. Ke4 {[%clk 0:00:02]}  Nf5 {[%clk 0:00:47]} 55. Be5+ {[%clk 0:00:02]}  Ke7 {[%clk 0:00:48]} 56. Kf3 {[%clk 0:00:02]}  Be3 {[%clk 0:00:43]} 57. Bd3 {[%clk 0:00:01]}  Bd4 {[%clk 0:00:42]} 58. Bb8 {[%clk 0:00:02]}  Nd6 {[%clk 0:00:40]} 59. Bc7 {[%clk 0:00:01]}  Nf5 {[%clk 0:00:39]} 60. Bb8 {[%clk 0:00:02]}  Ke6 {[%clk 0:00:38]} 61. Bc4+ {[%clk 0:00:02]}  Kf6 {[%clk 0:00:38]} 62. Bd3 {[%clk 0:00:02]}  Bc3 {[%clk 0:00:35]} 63. Bc7 {[%clk 0:00:02]}  Bb2 {[%clk 0:00:29]} 64. Bd8+ {[%clk 0:00:02]}  Ke6 {[%clk 0:00:29]} 65. Bc4+ {[%clk 0:00:02]}  Kd7 {[%clk 0:00:29]} 66. Bg5 {[%clk 0:00:03]}  Ke8 {[%clk 0:00:29]} 67. Bb5+ {[%clk 0:00:03]}  Kf7 {[%clk 0:00:29]} 68. Bc4+ {[%clk 0:00:03]}  Kg7 {[%clk 0:00:29]} 69. Bd5 {[%clk 0:00:03]}  Bf6 {[%clk 0:00:29]} 70. Bc4 {[%clk 0:00:02]}  Bxg5 {[%clk 0:00:29]} 71. fxg5 {[%clk 0:00:03]}  Nd6 {[%clk 0:00:29]} 72. Bd5 {[%clk 0:00:02]}  Nf7 {[%clk 0:00:26]} 73. Kf4 {[%clk 0:00:02]}  Kf8 {[%clk 0:00:26]} 74. Be4 {[%clk 0:00:03]}  Kg7 {[%clk 0:00:26]} 75. Bd5 {[%clk 0:00:03]}  Nd6 {[%clk 0:00:26]} 76. Be6 {[%clk 0:00:03]}  Kf8 {[%clk 0:00:23]} 77. Ba2 {[%clk 0:00:03]}  Ke7 {[%clk 0:00:23]} 78. Ke5 {[%clk 0:00:03]}  c4 {[%clk 0:00:20]} 79. Bb1 {[%clk 0:00:03]}  h4 {[%clk 0:00:19]} 80. Kf4 {[%clk 0:00:03]}  Nf5 {[%clk 0:00:14]} 81. Kg4 {[%clk 0:00:03]}  c3 {[%clk 0:00:13]} 82. Bd3 {[%clk 0:00:03]}  Kd6 {[%clk 0:00:12]} 83. Kh3 {[%clk 0:00:03]}  Ke5 {[%clk 0:00:13]} 84. Bc2 {[%clk 0:00:03]}  Kf4 {[%clk 0:00:13]} 85. Bb1 {[%clk 0:00:03]}  Kxg5 {[%clk 0:00:13]} 86. Bc2 {[%clk 0:00:04]}  Kf4 {[%clk 0:00:14]} 87. Bb1 {[%clk 0:00:04]}  g5 {[%clk 0:00:14]} 88. Bxf5 {[%clk 0:00:05]}  Kxf5 {[%clk 0:00:14]} 0-1


[Site "https://www.chess.com"]